Workbook

Sheet MSU
B1: Peetu Makkonen | E1: 8.11.2002 Kuopio
B2: SUPERPESIS | E2: Runkosarja | I2: Kärkilyönnit (KL), pesänvälit | P2: Runkosarja TOP-30 | U2: Alempi loppusarja | AB2: Ylempi loppusarja TOP-10 | AG2: Play off, voitot, voittoprosentti | AL2: Arvo-ottelut | AO2: Mitalit
B3: Vuosi | C3: Sija | D3: Seura | E3: OTT | F3: KUN | G3: LÖI | H3: TOI | I3: KL | J3: 0 > 1 | K3: 1 > 2 | L3: 2 > 3 | M3: 3 > k | N3: KL-% | P3: LÖI | Q3: TOI | R3: L+T | S3: KL | U3: OTT | V3: KUN | W3: LÖI | X3: TOI | Y3: KL | Z3: KL-% | AB3: LÖI | AC3: TOI | AD3: L+T | AE3: KL | AG3: Puolivälierät | AH3: Välierät | AI3: Pronssi | AJ3: Finaalit | AL3: IL | AM3: LL | AN3: hSM | AO3: K | AP3: H | AQ3: P
B4: 2019 | C4: 8. | D4: PuPe 2 | F4: suomensarja
B5: 2020 | C5: 6. | D5: SiiPe 2 | F5: suomensarja
B6: 2020 | C6: 14. | D6: SiiPe | E6: 5 | F6: 0 | G6: 0 | H6: 1 | I6: 5 | J6: 5 | K6: 0 | L6: 0 | M6: 0 | N6: 33.3 % | O6: 15
B7: 2021 | C7: 3. | D7: SiiPe 2 | F7: suomensarja
B8: 2021 | C8: 12. | D8: LU | F8: ykköspesis
B9: 2022
B10: 2023 | C10: 6. | D10: SiiPe | F10: suomensarja
B11: Yhteensä | E11: =SUM(E4:E10) -> 5 | F11: 0 | G11: 0 | H11: 1 | I11: 5 | J11: 5 | K11: 0 | L11: 0 | M11: 0 | N11: =PRODUCT(I11/O11) -> 33.3 % | O11: =SUM(O4:O10) -> 15 | P11: 0-0-0 | Q11: 0-0-0 | R11: 0-0-0 | S11: 0-0-0 | U11: =SUM(U4:U10) -> 0 | V11: =SUM(V4:V10) -> 0 | W11: =SUM(W4:W10) -> 0 | X11: =SUM(X4:X10) -> 0 | Y11: =SUM(Y4:Y10) -> 0 | Z11: 39.5 % | AA11: =SUM(AA4:AA10) -> 0.0 % | AB11: 0-0-0 | AC11: 0-0-0 | AD11: 0-0-0 | AE11: 0-0-0 | AG11: 0/0 | AH11: 0/0 | AI11: 0/0 | AJ11: 0/0 | AL11: =SUM(AL4:AL10) -> 0 | AM11: 0 | AN11: 0 | AO11: 0 | AP11: 0 | AQ11: 0
AG12: 0.0 % | AH12: 0.0 % | AI12: 0.0 % | AJ12: 0.0 %
B13: Pesispörssi | D13: =SUM(F11:H11)+((I11-F11-G11)/3)+(E11/3)+(AL11*25)+(AM11*25)+(AN11*10)+(AO11*25)+(AP11*20)+(AQ11*15) -> 4.3
B15: URA SUPERISSA | E15: OTT | F15: KUN | G15: LÖI | H15: TOI | I15: KL | K15: ka/L | L15: ka/T | M15: ka/KL | N15: KL-% | P15: ENSIMMÄISET RUNKOSARJASSA | AG15: ENSIMMÄISET PUDOTUSPELEISSÄ | AL15: YLEISÖ
B16: Runkosarja | E16: =PRODUCT(E11) -> 5 | F16: =PRODUCT(F11) -> 0 | G16: =PRODUCT(G11) -> 0 | H16: =PRODUCT(H11) -> 1 | I16: =PRODUCT(I11) -> 5 | K16: =PRODUCT((F16+G16)/E16) -> 0.00 | L16: =PRODUCT(H16/E16) -> 0.20 | M16: =PRODUCT(I16/E16) -> 1.00 | N16: =PRODUCT(N11) -> 33.3 % | O16: =PRODUCT(O11) -> 15 | P16: Ottelu | R16: 23.08. 2020 SiiPe - SoJy 0-1 (3-2, 2-2) | AA16: 1. ottelu | AD16: 17 v 9 kk 15 pv | AG16: Ottelu
B17: Ylempi loppusarja | P17: Lyöty | AG17: Lyöty
B18: Alempi loppusarja | P18: Tuotu | R18: 23.08. 2020 SiiPe - SoJy 0-1 (3-2, 2-2) | AA18: 1. ottelu | AD18: 17 v 9 kk 15 pv | AG18: Tuotu
B19: KAIKKI | E19: =SUM(E16:E18) -> 5 | F19: =SUM(F16:F18) -> 0 | G19: =SUM(G16:G18) -> 0 | H19: =SUM(H16:H18) -> 1 | I19: =SUM(I16:I18) -> 5 | K19: =PRODUCT((F19+G19)/E19) -> 0.00 | L19: =PRODUCT(H19/E19) -> 0.20 | M19: =PRODUCT(I19/E19) -> 1.00 | N19: =PRODUCT(I19/O19) -> 33.3 % | O19: =SUM(O16:O18) -> 15 | P19: Kunnari | AG19: Kunnari
B21: Seurat | D21: SiiPe = Siilinjärven Pesis (1987), kasvattajaseura
D22: PuPe = Puijon Pesis (2009)
D23: LU = Laukaan Urheilijat (1929)

Sheet MYP, MSS
B1: Peetu Makkonen | E1: 8.11.2002 Kuopio
B2: YKKÖSPESIS | E2: Runkosarja | L2: Runkosarja TOP-10 | Q2: Jatkosarjat | X2: SUOMENSARJA | AA2: Runkosarja | AH2: Runkosarja TOP-10 | AM2: Jatkosarjat
B3: Vuosi | C3: Sija | D3: Seura | E3: OTT | F3: KUN | G3: LÖI | H3: TOI | I3: KL | J3: KL-% | L3: LÖI | M3: TOI | N3: L+T | O3: KL | Q3: OTT | R3: KUN | S3: LÖI | T3: TOI | U3: KL | V3: KL-% | X3: Vuosi | Y3: Sija | Z3: Seura | AA3: OTT | AB3: KUN | AC3: LÖI | AD3: TOI | AE3: KL | AF3: KL-% | AH3: LÖI | AI3: TOI | AJ3: L+T | AK3: KL | AM3: OTT | AN3: KUN | AO3: LÖI | AP3: TOI | AQ3: KL | AR3: KL-%
X4: 2019 | Y4: 8. | Z4: PuPe 2 | AA4: 15 | AB4: 0 | AC4: 0 | AD4: 3 | AE4: 28 | AF4: 39.4 % | AG4: 71
X5: 2020 | Y5: 6. | Z5: SiiPe 2 | AA5: 7 | AB5: 2 | AC5: 0 | AD5: 10 | AE5: 27 | AF5: 61.4 % | AG5: 44
B6: 2021 | C6: 12. | D6: LU | E6: 7 | F6: 0 | G6: 0 | H6: 3 | I6: 16 | J6: 50.0 % | K6: 32 | X6: 2021 | Y6: 3. | Z6: SiiPe 2 | AA6: 9 | AB6: 1 | AC6: 1 | AD6: 14 | AE6: 50 | AF6: 67.6 % | AG6: 74 | AM6: 2 | AN6: 0 | AO6: 0 | AP6: 2 | AQ6: 8 | AR6: 57.1 % | AS6: 14
X8: 2023 | Y8: 6. | Z8: SiiPe | AA8: 13 | AB8: 0 | AC8: 0 | AD8: 22 | AE8: 61 | AF8: 68.5 % | AG8: 89 | AI8: 6. | AK8: 10.
B9: YHTEENSÄ | E9: =SUM(E4:E8) -> 7 | F9: =SUM(F4:F8) -> 0 | G9: 0 | H9: 3 | I9: 16 | J9: =PRODUCT(I9/K9) -> 50.0 % | K9: =SUM(K4:K8) -> 32 | Q9: =SUM(Q4:Q8) -> 0 | R9: =SUM(R4:R8) -> 0 | S9: 0 | T9: 0 | U9: 0 | V9: 0.0 % | W9: =SUM(W8:W8) -> 0 | X9: YHTEENSÄ | AA9: =SUM(AA4:AA8) -> 44 | AB9: =SUM(AB4:AB8) -> 3 | AC9: 1 | AD9: 49 | AE9: 166 | AF9: =PRODUCT(AE9/AG9) -> 59.7 % | AG9: 278 | AM9: =SUM(AM4:AM8) -> 2 | AN9: =SUM(AN4:AN8) -> 0 | AO9: 0 | AP9: 2 | AQ9: 8 | AR9: =PRODUCT(AQ9/AS9) -> 57.1 % | AS9: =SUM(AS4:AS8) -> 14
B11: KAIKKI OTTELUT | E11: OTT | F11: KUN | G11: LÖI | H11: TOI | I11: KL | J11: KL-% | L11: ka/L | M11: ka/T | N11: ka/l+t | O11: ka/kl | R11: Seurat | T11: SiiPe = Siilinjärven Pesis (1987), kasvattajaseura
B12: SUPERPESIS | E12: 5 | F12: 0 | G12: 0 | H12: 1 | I12: 5 | J12: 33.3 % | K12: =PRODUCT(I12/J12) -> 15.01501502 | L12: =PRODUCT((F12+G12)/E12) -> 0.00 | M12: =PRODUCT(H12/E12) -> 0.20 | N12: =PRODUCT((F12+G12+H12)/E12) -> 0.20 | O12: =PRODUCT(I12/E12) -> 1.00 | T12: PuPe = Puijon Pesis (2009)
B13: YKKÖSPESIS | E13: =PRODUCT(E9+Q9) -> 7 | F13: =PRODUCT(F9+R9) -> 0 | G13: =PRODUCT(G9+S9) -> 0 | H13: =PRODUCT(H9+T9) -> 3 | I13: =PRODUCT(I9+U9) -> 16 | J13: =PRODUCT(I13/K13) -> 50.0 % | K13: =PRODUCT(K9+W9) -> 32 | L13: =PRODUCT((F13+G13)/E13) -> 0.00 | M13: =PRODUCT(H13/E13) -> 0.43 | N13: =PRODUCT((F13+G13+H13)/E13) -> 0.43 | O13: =PRODUCT(I13/E13) -> 2.29 | T13: LU = Laukaan Urheilijat (1929)
B14: SUOMENSARJA | E14: =PRODUCT(AA9+AM9) -> 46 | F14: =PRODUCT(AB9+AN9) -> 3 | G14: =PRODUCT(AC9+AO9) -> 1 | H14: =PRODUCT(AD9+AP9) -> 51 | I14: =PRODUCT(AE9+AQ9) -> 174 | J14: =PRODUCT(I14/K14) -> 59.6 % | K14: =PRODUCT(AG9+AS9) -> 292 | L14: =PRODUCT((F14+G14)/E14) -> 0.09 | M14: =PRODUCT(H14/E14) -> 1.11 | N14: =PRODUCT((F14+G14+H14)/E14) -> 1.20 | O14: =PRODUCT(I14/E14) -> 3.78
B15: YHTEENSÄ | E15: =SUM(E12:E14) -> 58 | F15: =SUM(F12:F14) -> 3 | G15: 1 | H15: 55 | I15: 195 | J15: =PRODUCT(I15/K15) -> 57.5 % | K15: =SUM(K12:K14) -> 339.015015 | L15: =PRODUCT((F15+G15)/E15) -> 0.07 | M15: =PRODUCT(H15/E15) -> 0.95 | N15: =PRODUCT((F15+G15+H15)/E15) -> 1.02 | O15: =PRODUCT(I15/E15) -> 3.36
